[Event "Titled Tuesday Blitz August 17 2021"]
[White "Martins, Vinicius Tine"]
[Black "Kvon, Andrey"]
[WhiteFideId "2112884"]
[BlackFideId "14201356"]
[WhiteElo "2373"]
[BlackElo "2458"]
[Result "1-0"]
[Round "04"]
[TimeControl "180+1"]
[Date "2021.08.17"]
[WhiteClock "0:00:14"]
[BlackClock "0:00:07"]

1. d4 {[%clk 0:03:00]}  f5 {[%clk 0:02:59]} 2. g3 {[%clk 0:02:54]}  Nf6 {[%clk 0:02:58]} 3. Bg2 {[%clk 0:02:53]}  e6 {[%clk 0:02:59]} 4. c4 {[%clk 0:02:52]}  d5 {[%clk 0:02:58]} 5. Nf3 {[%clk 0:02:51]}  Bb4+ {[%clk 0:02:57]} 6. Nbd2 {[%clk 0:02:46]}  c6 {[%clk 0:02:56]} 7. O-O {[%clk 0:02:45]}  b6 {[%clk 0:02:53]} 8. cxd5 {[%clk 0:02:42]}  exd5 {[%clk 0:02:49]} 9. Ne5 {[%clk 0:02:33]}  Bd6 {[%clk 0:02:42]} 10. Qc2 {[%clk 0:02:29]}  Qc7 {[%clk 0:02:29]} 11. Ndf3 {[%clk 0:02:23]}  O-O {[%clk 0:02:23]} 12. Bf4 {[%clk 0:02:09]}  Ne4 {[%clk 0:02:17]} 13. Rac1 {[%clk 0:02:01]}  Bb7 {[%clk 0:02:16]} 14. Nd3 {[%clk 0:01:57]}  Nd7 {[%clk 0:02:11]} 15. Qb3 {[%clk 0:01:51]}  Bxf4 {[%clk 0:02:06]} 16. Nxf4 {[%clk 0:01:49]}  Qd6 {[%clk 0:02:06]} 17. Rc2 {[%clk 0:01:44]}  Kh8 {[%clk 0:02:02]} 18. h4 {[%clk 0:01:39]}  Rae8 {[%clk 0:02:00]} 19. Rfc1 {[%clk 0:01:37]}  a5 {[%clk 0:01:44]} 20. e3 {[%clk 0:01:33]}  b5 {[%clk 0:01:43]} 21. a4 {[%clk 0:01:21]}  b4 {[%clk 0:01:42]} 22. Nd3 {[%clk 0:01:19]}  Rc8 {[%clk 0:01:28]} 23. Nde5 {[%clk 0:01:18]}  Nef6 {[%clk 0:01:28]} 24. Qd3 {[%clk 0:01:11]}  g6 {[%clk 0:01:27]} 25. Nxd7 {[%clk 0:01:00]}  Nxd7 {[%clk 0:01:26]} 26. Nd2 {[%clk 0:00:49]}  Qb8 {[%clk 0:01:12]} 27. Nb3 {[%clk 0:00:47]}  Qa8 {[%clk 0:01:12]} 28. Nc5 {[%clk 0:00:47]}  Nf6 {[%clk 0:01:04]} 29. Qe2 {[%clk 0:00:39]}  Rc7 {[%clk 0:01:02]} 30. Ne6 {[%clk 0:00:34]}  Rff7 {[%clk 0:00:59]} 31. Nxc7 {[%clk 0:00:34]}  Rxc7 {[%clk 0:01:00]} 32. Qf3 {[%clk 0:00:34]}  Kg7 {[%clk 0:00:59]} 33. Qf4 {[%clk 0:00:35]}  Rd7 {[%clk 0:00:56]} 34. Qe5 {[%clk 0:00:32]}  Kf7 {[%clk 0:00:57]} 35. Bf3 {[%clk 0:00:28]}  Qd8 {[%clk 0:00:46]} 36. h5 {[%clk 0:00:28]}  Re7 {[%clk 0:00:43]} 37. hxg6+ {[%clk 0:00:28]}  hxg6 {[%clk 0:00:42]} 38. Qf4 {[%clk 0:00:28]}  Re8 {[%clk 0:00:28]} 39. Rxc6 {[%clk 0:00:25]}  Bxc6 {[%clk 0:00:28]} 40. Rxc6 {[%clk 0:00:26]}  Re7 {[%clk 0:00:25]} 41. Qd6 {[%clk 0:00:19]}  Rd7 {[%clk 0:00:22]} 42. Qc5 {[%clk 0:00:19]}  Kg7 {[%clk 0:00:20]} 43. Rc8 {[%clk 0:00:19]}  Qe7 {[%clk 0:00:21]} 44. Qxe7+ {[%clk 0:00:19]}  Rxe7 {[%clk 0:00:22]} 45. Rc5 {[%clk 0:00:19]}  Ra7 {[%clk 0:00:20]} 46. Bxd5 {[%clk 0:00:19]}  Kf8 {[%clk 0:00:20]} 47. Bf3 {[%clk 0:00:18]}  Ke7 {[%clk 0:00:21]} 48. Kg2 {[%clk 0:00:18]}  Kd6 {[%clk 0:00:20]} 49. Kf1 {[%clk 0:00:18]}  Ke7 {[%clk 0:00:21]} 50. Ke2 {[%clk 0:00:18]}  Kd6 {[%clk 0:00:22]} 51. Kd3 {[%clk 0:00:19]}  Ra6 {[%clk 0:00:22]} 52. Kc4 {[%clk 0:00:18]}  Nd7 {[%clk 0:00:22]} 53. Rd5+ {[%clk 0:00:16]}  Kc7 {[%clk 0:00:22]} 54. Kb5 {[%clk 0:00:16]}  Ra7 {[%clk 0:00:15]} 55. Bg2 {[%clk 0:00:15]}  Nf6 {[%clk 0:00:08]} 56. Rc5+ {[%clk 0:00:15]}  Kb8 {[%clk 0:00:09]} 57. Rc6 {[%clk 0:00:14]}  Ne8 {[%clk 0:00:09]} 58. Rxg6 {[%clk 0:00:13]}  Nc7+ {[%clk 0:00:09]} 59. Kc4 {[%clk 0:00:13]}  Ra6 {[%clk 0:00:08]} 60. Rg8+ {[%clk 0:00:13]}  Ka7 {[%clk 0:00:07]} 61. Rg7 {[%clk 0:00:14]} 1-0


[Site "https://www.chess.com"]

[Event "Titled Tuesday Blitz August 17 2021"]
[White "Matinian, Nikita"]
[Black "Kovalev, Vladislav"]
[WhiteFideId "24129100"]
[BlackFideId "13504398"]
[WhiteElo "2410"]
[BlackElo "2573"]
[Result "1-0"]
[Round "04"]
[TimeControl "180+1"]
[Date "2021.08.17"]
[WhiteClock "0:00:09"]
[BlackClock "0:00:03"]

1. e4 {[%clk 0:02:35]}  e5 {[%clk 0:02:59]} 2. Nf3 {[%clk 0:02:32]}  Nc6 {[%clk 0:03:00]} 3. Bb5 {[%clk 0:02:32]}  a6 {[%clk 0:03:00]} 4. Ba4 {[%clk 0:02:33]}  d6 {[%clk 0:02:58]} 5. c4 {[%clk 0:02:31]}  Bd7 {[%clk 0:02:57]} 6. Nc3 {[%clk 0:02:31]}  g6 {[%clk 0:02:56]} 7. d4 {[%clk 0:02:30]}  exd4 {[%clk 0:02:57]} 8. Nxd4 {[%clk 0:02:31]}  Bg7 {[%clk 0:02:58]} 9. Be3 {[%clk 0:02:31]}  Nge7 {[%clk 0:02:54]} 10. h4 {[%clk 0:02:30]}  h6 {[%clk 0:02:25]} 11. h5 {[%clk 0:02:27]}  g5 {[%clk 0:02:25]} 12. Nd5 {[%clk 0:02:18]}  O-O {[%clk 0:02:09]} 13. Bb3 {[%clk 0:02:09]}  Re8 {[%clk 0:01:47]} 14. f3 {[%clk 0:01:54]}  Nxd5 {[%clk 0:01:19]} 15. cxd5 {[%clk 0:01:55]}  Nxd4 {[%clk 0:01:19]} 16. Bxd4 {[%clk 0:01:55]}  f5 {[%clk 0:01:20]} 17. Bxg7 {[%clk 0:01:09]}  Kxg7 {[%clk 0:01:20]} 18. Rc1 {[%clk 0:01:10]}  fxe4 {[%clk 0:01:06]} 19. Qd4+ {[%clk 0:01:08]}  Qf6 {[%clk 0:01:06]} 20. Qxf6+ {[%clk 0:01:05]}  Kxf6 {[%clk 0:01:07]} 21. Rxc7 {[%clk 0:00:57]}  exf3+ {[%clk 0:01:05]} 22. Kf2 {[%clk 0:00:55]}  Re2+ {[%clk 0:00:40]} 23. Kxf3 {[%clk 0:00:55]}  Rae8 {[%clk 0:00:41]} 24. Kg3 {[%clk 0:00:47]}  R8e3+ {[%clk 0:00:37]} 25. Kh2 {[%clk 0:00:44]}  Rh3+ {[%clk 0:00:28]} 26. Kg1 {[%clk 0:00:44]}  Re1+ {[%clk 0:00:28]} 27. Kf2 {[%clk 0:00:44]}  Rhxh1 {[%clk 0:00:28]} 28. Rxd7 {[%clk 0:00:45]}  Rhf1+ {[%clk 0:00:23]} 29. Kg3 {[%clk 0:00:45]}  Re3+ {[%clk 0:00:14]} 30. Kh2 {[%clk 0:00:45]}  g4 {[%clk 0:00:15]} 31. Rxd6+ {[%clk 0:00:37]}  Kg5 {[%clk 0:00:13]} 32. Rg6+ {[%clk 0:00:25]}  Kh4 {[%clk 0:00:04]} 33. g3+ {[%clk 0:00:20]}  Rxg3 {[%clk 0:00:04]} 34. d6 {[%clk 0:00:13]}  Rgf3 {[%clk 0:00:02]} 35. Bd5 {[%clk 0:00:08]}  R1f2+ {[%clk 0:00:02]} 36. Kg1 {[%clk 0:00:08]}  Rf1+ {[%clk 0:00:03]} 37. Kh2 {[%clk 0:00:09]} 1-0


[Site "https://www.chess.com"]

[Event "Titled Tuesday Blitz August 17 2021"]
[White "Maze, Sebastien"]
[Black "Bychkov, Vladimir"]
[WhiteFideId "613762"]
[BlackFideId "24151513"]
[WhiteElo "2462"]
[BlackElo "2308"]
[Result "1-0"]
[Round "04"]
[TimeControl "180+1"]
[Date "2021.08.17"]
[WhiteClock "0:00:20"]
[BlackClock "0:00:17"]

1. e4 {[%clk 0:03:00]}  c6 {[%clk 0:02:59]} 2. Nf3 {[%clk 0:02:51]}  d5 {[%clk 0:03:00]} 3. Nc3 {[%clk 0:02:50]}  dxe4 {[%clk 0:03:00]} 4. Nxe4 {[%clk 0:02:47]}  Nf6 {[%clk 0:03:00]} 5. Qe2 {[%clk 0:02:46]}  Nxe4 {[%clk 0:03:00]} 6. Qxe4 {[%clk 0:02:46]}  Qd5 {[%clk 0:03:01]} 7. Qe3 {[%clk 0:02:42]}  Qe6 {[%clk 0:02:59]} 8. b3 {[%clk 0:02:41]}  f6 {[%clk 0:02:50]} 9. Bb2 {[%clk 0:02:39]}  g6 {[%clk 0:02:50]} 10. O-O-O {[%clk 0:02:39]}  Qxe3 {[%clk 0:02:50]} 11. fxe3 {[%clk 0:02:31]}  a5 {[%clk 0:02:36]} 12. a4 {[%clk 0:02:29]}  Na6 {[%clk 0:02:21]} 13. e4 {[%clk 0:02:24]}  e5 {[%clk 0:02:19]} 14. d4 {[%clk 0:02:23]}  exd4 {[%clk 0:02:17]} 15. Bxd4 {[%clk 0:02:21]}  Bg7 {[%clk 0:02:14]} 16. Bc4 {[%clk 0:02:21]}  Bg4 {[%clk 0:02:04]} 17. Bc3 {[%clk 0:02:09]}  Nb4 {[%clk 0:02:00]} 18. Kb2 {[%clk 0:01:58]}  Rd8 {[%clk 0:01:50]} 19. h3 {[%clk 0:01:57]}  Bxf3 {[%clk 0:01:40]} 20. gxf3 {[%clk 0:01:52]}  Ke7 {[%clk 0:01:35]} 21. h4 {[%clk 0:01:50]}  Rxd1 {[%clk 0:01:32]} 22. Rxd1 {[%clk 0:01:50]}  Rd8 {[%clk 0:01:33]} 23. Rh1 {[%clk 0:01:48]}  Kf8 {[%clk 0:01:13]} 24. h5 {[%clk 0:01:47]}  f5 {[%clk 0:01:11]} 25. e5 {[%clk 0:01:28]}  f4 {[%clk 0:01:04]} 26. hxg6 {[%clk 0:01:23]}  hxg6 {[%clk 0:01:05]} 27. Rg1 {[%clk 0:01:19]}  Nd5 {[%clk 0:00:50]} 28. Bxd5 {[%clk 0:01:18]}  Rxd5 {[%clk 0:00:50]} 29. Rxg6 {[%clk 0:01:17]}  Kf7 {[%clk 0:00:39]} 30. Rg4 {[%clk 0:01:12]}  Bxe5 {[%clk 0:00:34]} 31. Bxe5 {[%clk 0:01:03]}  Rxe5 {[%clk 0:00:35]} 32. Rxf4+ {[%clk 0:01:02]}  Ke6 {[%clk 0:00:34]} 33. Rf8 {[%clk 0:01:02]}  Rh5 {[%clk 0:00:30]} 34. Rb8 {[%clk 0:00:56]}  Rh7 {[%clk 0:00:29]} 35. Kc3 {[%clk 0:00:56]}  Kd5 {[%clk 0:00:30]} 36. Kd3 {[%clk 0:00:55]}  Rf7 {[%clk 0:00:28]} 37. Ke3 {[%clk 0:00:53]}  Re7+ {[%clk 0:00:28]} 38. Kd3 {[%clk 0:00:51]}  Rf7 {[%clk 0:00:28]} 39. Rd8+ {[%clk 0:00:49]}  Kc5 {[%clk 0:00:28]} 40. Ke3 {[%clk 0:00:50]}  Re7+ {[%clk 0:00:28]} 41. Kf2 {[%clk 0:00:46]}  Rf7 {[%clk 0:00:29]} 42. Rd3 {[%clk 0:00:41]}  b5 {[%clk 0:00:29]} 43. Rc3+ {[%clk 0:00:38]}  Kb4 {[%clk 0:00:27]} 44. Rxc6 {[%clk 0:00:38]}  bxa4 {[%clk 0:00:25]} 45. Rc4+ {[%clk 0:00:38]}  Kb5 {[%clk 0:00:26]} 46. Rxa4 {[%clk 0:00:37]}  Rc7 {[%clk 0:00:26]} 47. c4+ {[%clk 0:00:34]}  Kb6 {[%clk 0:00:25]} 48. f4 {[%clk 0:00:34]}  Rd7 {[%clk 0:00:22]} 49. Ke3 {[%clk 0:00:33]}  Re7+ {[%clk 0:00:21]} 50. Kf3 {[%clk 0:00:32]}  Re1 {[%clk 0:00:19]} 51. b4 {[%clk 0:00:30]}  axb4 {[%clk 0:00:18]} 52. Rxb4+ {[%clk 0:00:30]}  Kc5 {[%clk 0:00:19]} 53. Rb8 {[%clk 0:00:26]}  Kxc4 {[%clk 0:00:18]} 54. Rd8 {[%clk 0:00:26]}  Kc5 {[%clk 0:00:16]} 55. f5 {[%clk 0:00:25]}  Kc6 {[%clk 0:00:16]} 56. Kf4 {[%clk 0:00:25]}  Kc7 {[%clk 0:00:16]} 57. Rd2 {[%clk 0:00:24]}  Rf1+ {[%clk 0:00:16]} 58. Ke5 {[%clk 0:00:24]}  Re1+ {[%clk 0:00:15]} 59. Kf6 {[%clk 0:00:23]}  Rf1 {[%clk 0:00:16]} 60. Ke6 {[%clk 0:00:22]}  Re1+ {[%clk 0:00:15]} 61. Kf7 {[%clk 0:00:21]}  Rf1 {[%clk 0:00:16]} 62. f6 {[%clk 0:00:22]}  Kc8 {[%clk 0:00:16]} 63. Ke7 {[%clk 0:00:21]}  Re1+ {[%clk 0:00:16]} 64. Kf8 {[%clk 0:00:20]}  Rf1 {[%clk 0:00:16]} 65. f7 {[%clk 0:00:21]}  Rg1 {[%clk 0:00:17]} 66. Rd5 {[%clk 0:00:20]} 1-0


[Site "https://www.chess.com"]

[Event "Titled Tuesday Blitz August 17 2021"]
[White "Melikhov, Evgeny V."]
[Black "sganerdene"]
[WhiteFideId "4122046"]
[WhiteElo "1957"]
[BlackElo "2642"]
[Result "0-1"]
[Round "04"]
[TimeControl "180+1"]
[Date "2021.08.17"]
[WhiteClock "0:00:10"]
[BlackClock "0:00:19"]

1. d4 {[%clk 0:03:00]}  Nf6 {[%clk 0:02:59]} 2. c4 {[%clk 0:03:00]}  g6 {[%clk 0:03:00]} 3. Nc3 {[%clk 0:03:00]}  Bg7 {[%clk 0:03:00]} 4. e4 {[%clk 0:03:00]}  O-O {[%clk 0:03:01]} 5. Be3 {[%clk 0:02:59]}  d6 {[%clk 0:03:01]} 6. f3 {[%clk 0:02:59]}  c5 {[%clk 0:03:00]} 7. Nge2 {[%clk 0:02:58]}  Nc6 {[%clk 0:02:55]} 8. d5 {[%clk 0:02:58]}  Ne5 {[%clk 0:02:55]} 9. Ng3 {[%clk 0:02:58]}  h5 {[%clk 0:02:55]} 10. Be2 {[%clk 0:02:58]}  h4 {[%clk 0:02:53]} 11. Nf1 {[%clk 0:02:58]}  h3 {[%clk 0:02:54]} 12. g3 {[%clk 0:02:44]}  e6 {[%clk 0:02:47]} 13. Bg5 {[%clk 0:02:42]}  Qb6 {[%clk 0:02:42]} 14. Qb3 {[%clk 0:02:39]}  Qa5 {[%clk 0:02:14]} 15. Ne3 {[%clk 0:02:24]}  Re8 {[%clk 0:02:10]} 16. O-O {[%clk 0:02:22]}  Nh7 {[%clk 0:02:05]} 17. Bf4 {[%clk 0:02:14]}  g5 {[%clk 0:02:05]} 18. Qb5 {[%clk 0:01:38]}  Qd8 {[%clk 0:01:52]} 19. Bxe5 {[%clk 0:01:38]}  Bxe5 {[%clk 0:01:51]} 20. Kh1 {[%clk 0:01:20]}  Bd7 {[%clk 0:01:46]} 21. Qb3 {[%clk 0:01:19]}  Rb8 {[%clk 0:01:38]} 22. f4 {[%clk 0:01:18]}  Bd4 {[%clk 0:01:38]} 23. Ng4 {[%clk 0:01:10]}  exd5 {[%clk 0:01:26]} 24. cxd5 {[%clk 0:01:04]}  b5 {[%clk 0:01:11]} 25. e5 {[%clk 0:00:55]}  dxe5 {[%clk 0:00:56]} 26. f5 {[%clk 0:00:55]}  e4 {[%clk 0:00:46]} 27. d6 {[%clk 0:00:41]}  c4 {[%clk 0:00:40]} 28. Bxc4 {[%clk 0:00:40]}  bxc4 {[%clk 0:00:40]} 29. Qxc4 {[%clk 0:00:40]}  Bg7 {[%clk 0:00:37]} 30. Nd5 {[%clk 0:00:31]}  Bb5 {[%clk 0:00:28]} 31. Qc7 {[%clk 0:00:24]}  Bxf1 {[%clk 0:00:26]} 32. Ne7+ {[%clk 0:00:19]}  Rxe7 {[%clk 0:00:20]} 33. Qxe7 {[%clk 0:00:19]}  Qxe7 {[%clk 0:00:19]} 34. dxe7 {[%clk 0:00:18]}  Be2 {[%clk 0:00:19]} 35. Ne3 {[%clk 0:00:15]}  Bf3+ {[%clk 0:00:19]} 36. Kg1 {[%clk 0:00:15]}  Bd4 {[%clk 0:00:19]} 37. Re1 {[%clk 0:00:14]}  Nf6 {[%clk 0:00:19]} 38. b3 {[%clk 0:00:13]}  Ng4 {[%clk 0:00:19]} 39. f6 {[%clk 0:00:10]}  Bxe3+ {[%clk 0:00:18]} 40. Rxe3 {[%clk 0:00:09]}  Nxe3 {[%clk 0:00:19]} 41. Kf2 {[%clk 0:00:10]}  Ng4+ {[%clk 0:00:19]} 0-1


[Site "https://www.chess.com"]

[Event "Titled Tuesday Blitz August 17 2021"]
[White "Nakamura, Hikaru"]
[Black "Bacrot, Etienne"]
[WhiteFideId "2016192"]
[BlackFideId "605506"]
[WhiteElo "2900"]
[BlackElo "2673"]
[Result "1-0"]
[Round "04"]
[TimeControl "180+1"]
[Date "2021.08.17"]
[WhiteClock "0:01:07"]
[BlackClock "0:00:18"]

1. Nf3 {[%clk 0:03:00]}  d5 {[%clk 0:02:57]} 2. e3 {[%clk 0:03:00]}  Nf6 {[%clk 0:02:57]} 3. c4 {[%clk 0:03:00]}  e6 {[%clk 0:02:57]} 4. b3 {[%clk 0:03:00]}  b6 {[%clk 0:02:57]} 5. Bb2 {[%clk 0:03:00]}  Bb7 {[%clk 0:02:57]} 6. cxd5 {[%clk 0:03:00]}  exd5 {[%clk 0:02:57]} 7. d4 {[%clk 0:03:00]}  Nbd7 {[%clk 0:02:57]} 8. Nc3 {[%clk 0:02:58]}  a6 {[%clk 0:02:56]} 9. Ne5 {[%clk 0:02:57]}  Bd6 {[%clk 0:02:55]} 10. f4 {[%clk 0:02:57]}  O-O {[%clk 0:02:53]} 11. Bd3 {[%clk 0:02:57]}  c5 {[%clk 0:02:51]} 12. O-O {[%clk 0:02:55]}  b5 {[%clk 0:02:52]} 13. Bf5 {[%clk 0:02:36]}  c4 {[%clk 0:02:41]} 14. Ne2 {[%clk 0:02:36]}  g6 {[%clk 0:02:39]} 15. Bh3 {[%clk 0:02:32]}  Re8 {[%clk 0:02:32]} 16. Rc1 {[%clk 0:02:24]}  Nb6 {[%clk 0:02:21]} 17. Ng3 {[%clk 0:02:21]}  b4 {[%clk 0:02:06]} 18. Rc2 {[%clk 0:02:20]}  c3 {[%clk 0:02:03]} 19. Bc1 {[%clk 0:02:20]}  Ne4 {[%clk 0:02:02]} 20. Nxe4 {[%clk 0:02:15]}  dxe4 {[%clk 0:02:02]} 21. Rcf2 {[%clk 0:02:15]}  f6 {[%clk 0:01:57]} 22. Nc4 {[%clk 0:02:14]}  Bd5 {[%clk 0:01:53]} 23. Nxd6 {[%clk 0:02:09]}  Qxd6 {[%clk 0:01:53]} 24. f5 {[%clk 0:02:09]}  g5 {[%clk 0:01:53]} 25. Bg4 {[%clk 0:02:09]}  a5 {[%clk 0:01:52]} 26. h4 {[%clk 0:02:09]}  h6 {[%clk 0:01:50]} 27. Bh5 {[%clk 0:02:09]}  Kg7 {[%clk 0:01:19]} 28. Bxe8 {[%clk 0:02:06]}  Rxe8 {[%clk 0:01:19]} 29. Rc2 {[%clk 0:01:55]}  Qg3 {[%clk 0:01:09]} 30. Bd2 {[%clk 0:01:50]}  cxd2 {[%clk 0:01:06]} 31. Qxd2 {[%clk 0:01:50]}  Bf7 {[%clk 0:01:04]} 32. Qf2 {[%clk 0:01:48]}  Qg4 {[%clk 0:01:01]} 33. Rfc1 {[%clk 0:01:31]}  Nd5 {[%clk 0:01:01]} 34. Rc6 {[%clk 0:01:31]}  gxh4 {[%clk 0:01:00]} 35. Kh2 {[%clk 0:01:30]}  Rg8 {[%clk 0:00:59]} 36. Ra6 {[%clk 0:01:28]}  Kh7 {[%clk 0:00:52]} 37. Rxa5 {[%clk 0:01:24]}  Qg3+ {[%clk 0:00:50]} 38. Qxg3 {[%clk 0:01:24]}  hxg3+ {[%clk 0:00:50]} 39. Kg1 {[%clk 0:01:25]}  Nxe3 {[%clk 0:00:50]} 40. Re1 {[%clk 0:01:25]}  Rc8 {[%clk 0:00:44]} 41. Rc5 {[%clk 0:01:23]}  Rxc5 {[%clk 0:00:42]} 42. dxc5 {[%clk 0:01:22]}  Nxf5 {[%clk 0:00:43]} 43. Rxe4 {[%clk 0:01:22]}  Bd5 {[%clk 0:00:32]} 44. Rxb4 {[%clk 0:01:21]}  Kg6 {[%clk 0:00:32]} 45. a4 {[%clk 0:01:16]}  Kf7 {[%clk 0:00:31]} 46. a5 {[%clk 0:01:16]}  Ne3 {[%clk 0:00:31]} 47. a6 {[%clk 0:01:15]}  Nxg2 {[%clk 0:00:28]} 48. Rg4 {[%clk 0:01:12]}  Ne1 {[%clk 0:00:24]} 49. Rxg3 {[%clk 0:01:09]}  Nf3+ {[%clk 0:00:24]} 50. Kf2 {[%clk 0:01:09]}  Ne5 {[%clk 0:00:24]} 51. b4 {[%clk 0:01:08]}  Ke6 {[%clk 0:00:18]} 52. b5 {[%clk 0:01:07]} 1-0


[Site "https://www.chess.com"]

[Event "Titled Tuesday Blitz August 17 2021"]
[White "Navalgund, Niranjan"]
[Black "Woodward, Andy"]
[WhiteFideId "5030854"]
[BlackFideId "30953499"]
[WhiteElo "2290"]
[BlackElo "2137"]
[Result "1-0"]
[Round "04"]
[TimeControl "180+1"]
[Date "2021.08.17"]
[WhiteClock "0:00:13"]
[BlackClock "0:00:01"]

1. Nf3 {[%clk 0:03:00]}  Nf6 {[%clk 0:02:58]} 2. g3 {[%clk 0:02:51]}  d5 {[%clk 0:02:58]} 3. Bg2 {[%clk 0:02:49]}  c6 {[%clk 0:02:58]} 4. O-O {[%clk 0:02:48]}  Bg4 {[%clk 0:02:59]} 5. d3 {[%clk 0:02:44]}  Nbd7 {[%clk 0:02:58]} 6. h3 {[%clk 0:02:40]}  Bh5 {[%clk 0:02:57]} 7. Nbd2 {[%clk 0:02:39]}  e6 {[%clk 0:02:57]} 8. Qe1 {[%clk 0:02:34]}  Bc5 {[%clk 0:02:56]} 9. e4 {[%clk 0:02:32]}  dxe4 {[%clk 0:02:55]} 10. Nxe4 {[%clk 0:02:28]}  Nxe4 {[%clk 0:02:55]} 11. dxe4 {[%clk 0:02:28]}  O-O {[%clk 0:02:55]} 12. Bd2 {[%clk 0:02:21]}  Qb6 {[%clk 0:02:55]} 13. Bc3 {[%clk 0:02:20]}  Bxf3 {[%clk 0:02:44]} 14. Bxf3 {[%clk 0:02:18]}  Bd4 {[%clk 0:02:44]} 15. Bxd4 {[%clk 0:02:02]}  Qxd4 {[%clk 0:02:45]} 16. Rd1 {[%clk 0:02:03]}  Ne5 {[%clk 0:02:36]} 17. Rxd4 {[%clk 0:01:52]}  Nxf3+ {[%clk 0:02:36]} 18. Kg2 {[%clk 0:01:52]}  Nxd4 {[%clk 0:01:48]} 19. e5 {[%clk 0:01:46]}  Rfd8 {[%clk 0:01:44]} 20. Qc3 {[%clk 0:01:40]}  Nb5 {[%clk 0:01:41]} 21. Qe3 {[%clk 0:01:39]}  h6 {[%clk 0:01:26]} 22. a4 {[%clk 0:01:05]}  Nd4 {[%clk 0:01:25]} 23. c3 {[%clk 0:01:05]}  Nf5 {[%clk 0:01:26]} 24. Qe2 {[%clk 0:01:05]}  Rd5 {[%clk 0:01:19]} 25. Rd1 {[%clk 0:01:04]}  Rad8 {[%clk 0:01:18]} 26. Rxd5 {[%clk 0:01:04]}  Rxd5 {[%clk 0:01:19]} 27. b4 {[%clk 0:00:58]}  a5 {[%clk 0:01:02]} 28. b5 {[%clk 0:00:54]}  g6 {[%clk 0:00:49]} 29. bxc6 {[%clk 0:00:39]}  bxc6 {[%clk 0:00:50]} 30. Qc4 {[%clk 0:00:38]}  Ne7 {[%clk 0:00:43]} 31. Qb3 {[%clk 0:00:32]}  Kg7 {[%clk 0:00:36]} 32. Qb7 {[%clk 0:00:29]}  Kf8 {[%clk 0:00:30]} 33. c4 {[%clk 0:00:29]}  Rd2 {[%clk 0:00:23]} 34. Qa8+ {[%clk 0:00:28]}  Kg7 {[%clk 0:00:22]} 35. Qxa5 {[%clk 0:00:29]}  Rc2 {[%clk 0:00:21]} 36. Qc7 {[%clk 0:00:27]}  Nf5 {[%clk 0:00:20]} 37. Qxc6 {[%clk 0:00:23]}  Ne3+ {[%clk 0:00:18]} 38. Kf3 {[%clk 0:00:22]}  Nxc4 {[%clk 0:00:18]} 39. Qb5 {[%clk 0:00:19]}  Rc3+ {[%clk 0:00:15]} 40. Ke2 {[%clk 0:00:18]}  Na3 {[%clk 0:00:10]} 41. Qb8 {[%clk 0:00:17]}  Rc2+ {[%clk 0:00:08]} 42. Kf3 {[%clk 0:00:16]}  Nc4 {[%clk 0:00:08]} 43. a5 {[%clk 0:00:15]}  Nxa5 {[%clk 0:00:08]} 44. Qd8 {[%clk 0:00:15]}  Nc6 {[%clk 0:00:08]} 45. Qf6+ {[%clk 0:00:15]}  Kg8 {[%clk 0:00:08]} 46. Ke3 {[%clk 0:00:15]}  Rc3+ {[%clk 0:00:08]} 47. Kd2 {[%clk 0:00:15]}  Ra3 {[%clk 0:00:05]} 48. f4 {[%clk 0:00:16]}  Rxg3 {[%clk 0:00:05]} 49. Qh4 {[%clk 0:00:14]}  Rg2+ {[%clk 0:00:05]} 50. Ke3 {[%clk 0:00:13]}  g5 {[%clk 0:00:04]} 51. Qxh6 {[%clk 0:00:13]}  gxf4+ {[%clk 0:00:04]} 52. Kxf4 {[%clk 0:00:13]}  Rg6 {[%clk 0:00:04]} 53. Qh4 {[%clk 0:00:13]}  Kg7 {[%clk 0:00:04]} 54. Ke4 {[%clk 0:00:12]}  Rh6 {[%clk 0:00:02]} 55. Qg5+ {[%clk 0:00:13]}  Rg6 {[%clk 0:00:03]} 56. Qf4 {[%clk 0:00:13]}  Ne7 {[%clk 0:00:02]} 57. h4 {[%clk 0:00:12]}  Nf5 {[%clk 0:00:03]} 58. h5 {[%clk 0:00:13]}  Rh6 {[%clk 0:00:04]} 59. Qg5+ {[%clk 0:00:13]}  Kh7 {[%clk 0:00:04]} 60. Kf4 {[%clk 0:00:13]}  Kh8 {[%clk 0:00:03]} 61. Qd8+ {[%clk 0:00:13]}  Kg7 {[%clk 0:00:03]} 62. Kg4 {[%clk 0:00:13]}  Rh8 {[%clk 0:00:03]} 63. Qg5+ {[%clk 0:00:13]}  Kf8 {[%clk 0:00:02]} 64. Qf6 {[%clk 0:00:14]}  Rg8+ {[%clk 0:00:02]} 65. Kf4 {[%clk 0:00:14]}  Rg7 {[%clk 0:00:02]} 66. h6 {[%clk 0:00:13]}  Rg6 {[%clk 0:00:01]} 67. Qd8# {[%clk 0:00:13]} 1-0


[Site "https://www.chess.com"]